bitfinex/quotes_SOLUSD_20251013
["timestamp","ask_amount","ask_price","bid_price","bid_amount"]
[1760313601484,0.67,197.47,197.36,0.2]
[1760313601788,0.67,197.47,197.38,10.87647521]
[1760313601995,0.67,197.46,197.39,0.69]
[1760313602290,0.67,197.46,197.38,0.69]
[1760313602487,0.67,197.51,197.38,0.69]
[1760313602872,0.67,197.51,197.36,0.2]
[1760313602873,6.47921316,197.5,197.39,0.69]
[1760313603072,3.93889487,197.55,197.39,0.69]
[1760313603073,0.67,197.49,197.39,0.69]
[1760313603389,40.58726402,197.68,197.39,0.69]
[1760313603390,14.39383909,197.62,197.4,10.87647521]
[1760313603596,0.67,197.61,197.42,10.87647521]
[1760313603793,0.67,197.6,197.43,0.69]
[1760313604091,10.87647521,197.59,197.42,0.69]
[1760313604288,7.14921316,197.58,197.42,0.69]
[1760313605389,0.67,197.58,197.42,0.69]
[1760313606678,0.67,197.58,197.44,10.87647521]
[1760313606679,18.38434839,197.58,197.44,10.87647521]
[1760313606873,5.06047264,197.61,197.46,10.87647521]
[1760313607192,5.06022137,197.62,197.48,10.87647521]
[1760313607376,0.67,197.61,197.5,10.87647521]
[1760313607573,0.67,197.61,197.51,0.69]
[1760313608385,5.06072874,197.6,197.53,10.87647521]
[1760313608570,0.67,197.59,197.5,10.87647521]
[1760313608774,0.67,197.58,197.5,10.87647521]
[1760313608996,0.67,197.57,197.5,10.87647521]
[1760313609589,18.3825506,197.6,197.52,10.87647521]
[1760313609900,5.06072874,197.6,197.53,0.69]
[1760313610274,0.67,197.62,197.53,0.69]
[1760313610275,0.67,197.65,197.55,10.87647521]
[1760313610580,5.05893661,197.67,197.57,10.87647521]
[1760313610889,5.05893661,197.67,197.53,10.87647521]
[1760313610890,0.67,197.66,197.53,10.87647521]
[1760313611075,0.67,197.65,197.53,10.87647521]
[1760313611279,43.00096118,197.67,197.53,10.87647521]
[1760313611280,0.67,197.64,197.53,10.87647521]
[1760313611586,0.67,197.63,197.51,10.87647521]
[1760313611899,0.67,197.62,197.51,11.56647521]
[1760313612077,0.67,197.61,197.49,10.87647521]
[1760313612277,0.67,197.6,197.49,11.56647521]
[1760313612485,0.67,197.59,197.49,11.56647521]
[1760313612797,0.67,197.58,197.46,0.69]
[1760313612977,0.67,197.58,197.47,10.87647521]
[1760313613178,0.67,197.57,197.47,10.87647521]
[1760313613378,0.67,197.56,197.47,10.87647521]
[1760313613578,0.67,197.56,197.46,0.69]
[1760313613883,0.67,197.56,197.47,10.87647521]
[1760313614082,0.67,197.56,197.48,0.69]
[1760313615203,0.67,197.57,197.48,0.69]
[1760313615699,17.7125506,197.6,197.49,10.87647521]
[1760313615996,17.7125506,197.6,197.48,5.75365144]
[1760313615997,0.67,197.66,197.51,10.87647521]
[1760313616304,17.70538243,197.68,197.53,10.87647521]
[1760313616505,5.05868069,197.68,197.55,10.87647521]
[1760313616806,5.05868069,197.68,197.57,10.87647521]
[1760313617005,5.05868069,197.68,197.58,0.69]
[1760313617299,5.0584248,197.69,197.59,5.06098486]
[1760313617504,12.64670174,197.68,197.6,0.69]
[1760313618279,5.0584248,197.69,197.61,10.87647521]
[1760313618481,5.15809963,197.71,197.63,10.87647521]
[1760313618705,5.15809963,197.71,197.64,0.69]
[1760313620002,0.67,197.7,197.6,0.69]
[1760313620889,0.67,197.7,197.58,10.87647521]
[1760313621095,0.67,197.69,197.59,0.69]
[1760313621410,0.1,197.71,197.6,10.87647521]
[1760313621716,0.1,197.71,197.62,10.87647521]
[1760313621896,18.37359129,197.7,197.61,0.69]
[1760313622097,18.37359129,197.7,197.62,10.87647521]
[1760313622407,18.37359129,197.7,197.63,0.69]
[1760313622584,18.37359129,197.7,197.59,15.93734504]
[1760313622585,18.37359129,197.7,197.6,0.69]
[1760313626402,18.37359129,197.7,197.55,12.65480433]
[1760313626605,0.71,197.69,197.58,10.87647521]
[1760313626797,0.71,197.68,197.57,0.66]
[1760313626990,10.87647521,197.67,197.53,0.66]
[1760313627197,5.05944852,197.65,197.54,10.87647521]
[1760313627397,5.05944852,197.65,197.56,10.87647521]
[1760313627600,17.70806982,197.65,197.57,0.66]
[1760313627986,0.71,197.64,197.55,0.66]
[1760313628606,0.71,197.64,197.52,0.66]
[1760313629011,10.87647521,197.63,197.47,0.66]
[1760313629309,28.58812947,197.61,197.44,0.66]
[1760313629501,10.87647521,197.59,197.44,0.66]
[1760313629816,0.71,197.58,197.44,18.38690437]
[1760313630110,0.71,197.58,197.46,10.87647521]
[1760313630411,10.87647521,197.56,197.43,0.66]
[1760313630586,10.87647521,197.56,197.39,0.66]
[1760313630795,10.87647521,197.54,197.39,0.66]
[1760313631114,0.71,197.55,197.39,0.66]
[1760313631296,5.06226587,197.54,197.41,10.87647521]
[1760313631488,0.71,197.53,197.43,10.87647521]
[1760313631680,25.30236324,197.61,197.45,10.87647521]
[1760313631681,13.36359562,197.58,197.45,10.87647521]
[1760313631885,13.36359562,197.58,197.47,10.87647521]
[1760313632095,13.36359562,197.58,197.48,0.66]
[1760313632304,21.75295042,197.63,197.4,17.73049644]
[1760313632305,0.71,197.57,197.44,0.66]
[1760313632502,0.71,197.57,197.43,0.66]
[1760313632712,10.87647521,197.56,197.34,0.86]
[1760313632888,10.87647521,197.54,197.35,0.66]
[1760313633089,10.87647521,197.52,197.35,0.66]
[1760313633298,10.87647521,197.5,197.35,0.66]
[1760313633617,10.87647521,197.48,197.34,0.2]
[1760313633990,10.87647521,197.46,197.34,0.2]
[1760313634200,0.71,197.47,197.34,0.2]
[1760313634402,10.87647521,197.46,197.34,0.2]
[1760313634609,10.87647521,197.44,197.34,0.2]
[1760313634797,0.71,197.45,197.34,0.2]
[1760313635200,17.72690437,197.44,197.34,0.2]
[1760313635401,11.58647521,197.43,197.34,0.2]
[1760313636517,0.71,197.43,197.34,0.2]
[1760313636730,10.87647521,197.42,197.34,0.2]
[1760313637012,0.71,197.41,197.34,0.2]
[1760313637414,5.06585612,197.4,197.34,0.2]
[1760313637590,0.71,197.41,197.34,0.2]
[1760313637792,10.87647521,197.38,197.31,0.2]
[1760313638190,0.12,197.37,197.31,0.2]
[1760313638417,0.12,197.36,197.31,0.2]
[1760313638722,0.12,197.35,197.31,0.2]
[1760313638926,0.12,197.34,197.31,0.2]
[1760313639091,0.12,197.33,197.31,0.2]
[1760313639418,16.0643852,197.32,197.31,0.2]
[1760313641211,5.06790999,197.32,197.31,0.2]
[1760313641398,10.87647521,197.33,197.31,0.2]
[1760313642299,10.99647521,197.33,197.31,0.2]
[1760313642700,0.12,197.32,197.31,0.2]
[1760313643308,5.18790999,197.32,197.31,1e-08]
[1760313643919,7.22182553,197.32,197.31,1e-08]
[1760313645303,5.06790999,197.32,197.31,1e-08]
[1760313645700,5.18790999,197.32,197.31,1e-08]
[1760313646208,5.06790999,197.32,197.31,1e-08]
[1760313646397,20.8,197.24,197.09,1e-08]
[1760313646599,68.53678489,197.32,197.03,1e-08]
[1760313646600,31.67647521,197.07,197.03,1e-08]
[1760313646817,20.8,197.07,197.03,1e-08]
[1760313647210,10.87647521,197.08,197.03,1e-08]
[1760313647400,20.8,197.05,197.03,1e-08]
[1760313647996,20.8,197.04,197.03,1e-08]
[1760313648438,2.03588242,197.12,197.03,0.66000001]
[1760313648624,10.87647521,197.16,197.03,0.66000001]
[1760313648826,2.03536445,197.17,197.04,10.87647521]
[1760313649125,5.07047966,197.22,197.06,10.87647521]
[1760313649441,20.8,197.18,197.08,5.07408159]
[1760313649723,12.67377889,197.26,197.09,0.66]
[1760313649928,12.68637588,197.23,197.09,0.66]
[1760313650112,10.87647521,197.22,197.09,0.66]
[1760313650415,10.87647521,197.25,197.09,0.66]
[1760313650813,10.99647521,197.25,197.09,0.66]
[1760313651012,20.8,197.22,197.09,0.66]
[1760313651204,20.8,197.22,197.1,10.87647521]
[1760313651398,20.8,197.22,197.11,0.66]
[1760313651601,31.67647521,197.04,196.9,0.2]
[1760313651913,31.67647521,197.04,196.91,0.66]
[1760313652101,31.79647521,197.04,196.91,0.66]
[1760313652301,31.79647521,197.04,196.91,5.73840646]
[1760313652529,31.79647521,197.04,196.92,5.07808614]
[1760313652698,31.79647521,197.04,196.93,5.07791155]
[1760313653102,31.79647521,197.04,196.94,5.07761264]
[1760313653721,36.75158686,197.04,196.94,5.07761264]
[1760313653934,25.87511165,197.04,196.9,0.2]
[1760313654105,36.75158686,197.04,196.94,0.66]
[1760313654806,36.87158686,197.04,196.94,0.66]
[1760313655624,10.87647521,197.03,197.01,1e-08]
[1760313655825,10.99647521,197.03,197.01,1e-08]
[1760313656024,0.12,197.02,197.01,1e-08]
[1760313657141,30.9964752,197.02,197.01,1e-08]
[1760313657360,30.9964752,197.02,196.97,1e-08]
[1760313657361,31.67647521,196.98,196.97,1e-08]
[1760313657853,36.87313273,196.98,196.97,1e-08]
[1760313658346,36.75313273,196.98,196.97,1e-08]
[1760313659445,38.79067443,196.98,196.97,1e-08]
[1760313660539,2.0375417,196.98,196.97,1e-08]
[1760313660742,10.87647521,196.99,196.97,1e-08]
[1760313661048,20.8,196.98,196.97,1e-08]
[1760313661251,31.67647521,196.98,196.97,1e-08]
[1760313662246,36.75313273,196.98,196.97,1e-08]
[1760313663242,25.87665752,196.98,196.97,1e-08]
[1760313663451,5.07632233,197.0,196.97,0.69000001]
[1760313663635,12.6866263,197.06,196.98,0.69]
[1760313663835,17.76122286,197.06,196.98,0.69]
[1760313664027,19.99999999,197.11,196.98,0.69]
[1760313664028,2.03650434,197.05,196.98,0.69]
[1760313664351,20.8,197.12,196.98,0.69]
[1760313664845,17.75297995,197.15,196.98,5.76658522]
[1760313665027,17.75297995,197.15,196.99,0.69]
[1760313665228,20.8,197.12,196.99,0.69]
[1760313666247,20.8,197.07,196.97,1e-08]
[1760313666451,20.8,197.06,196.97,1e-08]
[1760313666631,20.8,197.05,196.97,1e-08]
[1760313666950,19.99999999,197.03,196.97,1e-08]
[1760313667142,20.8,196.96,196.85,0.89]
[1760313667541,20.8,196.95,196.85,0.89]
[1760313668053,22.95795694,196.94,196.85,0.2]
[1760313668229,5.07820434,196.92,196.85,0.2]
[1760313668432,20.8,196.89,196.85,0.2]
[1760313668759,0.12,196.88,196.85,1e-08]
[1760313668950,0.12,196.88,196.77,0.1]
[1760313669159,2.03795694,196.94,196.82,0.69]
[1760313669452,134.0,197.45,196.82,0.69]
[1760313669453,12.69014145,197.01,196.82,0.69]
[1760313669766,20.8,196.95,196.82,0.69]
[1760313670252,17.76920342,196.97,196.83,5.08052634]
[1760313670455,17.76920342,196.97,196.81,1e-08]
[1760313670456,17.76920342,196.97,196.84,0.69]
[1760313670838,0.12,196.96,196.84,0.69]
[1760313671059,20.8,196.94,196.84,0.69]
[1760313671546,5.08091945,196.98,196.84,0.69]
[1760313671734,5.07536923,197.03,196.84,0.69]
[1760313671942,33.04309624,197.03,196.85,10.87647521]
[1760313672141,33.04309624,197.03,196.87,10.87647521]
[1760313672336,10.87647521,197.02,196.88,5.76923608]
[1760313672556,10.87647521,197.02,196.81,25.40521315]
[1760313672557,20.8,196.95,196.89,0.69]
[1760313672754,20.8,196.91,196.85,0.69]
[1760313673058,20.8,196.91,196.86,0.69]
[1760313673244,20.8,196.91,196.87,0.69]
[1760313673637,20.8,196.91,196.83,0.69]
[1760313674363,25.87973153,196.87,196.81,1e-08]
[1760313674749,20.8,196.87,196.81,1e-08]
[1760313675831,20.8,196.89,196.82,0.69]
[1760313676056,20.8,196.89,196.81,1e-08]
[1760313676249,0.12,196.88,196.81,1e-08]
[1760313676449,20.8,196.84,196.81,1e-08]
[1760313677554,5.07918094,196.89,196.82,0.69]
[1760313677745,20.8,196.86,196.82,0.69]
[1760313677942,20.8,196.86,196.81,1e-08]
[1760313678251,20.8,196.86,196.83,0.69]
[1760313678562,20.8,196.86,196.81,1e-08]
[1760313678941,20.8,196.85,196.81,1e-08]
[1760313679142,20.8,196.84,196.81,1e-08]
[1760313679342,20.8,196.84,196.82,0.69]
[1760313679555,20.8,196.84,196.83,0.69]
[1760313679751,10.87647521,196.92,196.83,0.69]
[1760313679958,12.6930557,196.96,196.83,0.69]
[1760313680139,0.12,197.03,196.84,10.87647521]
[1760313680339,0.12,197.03,196.81,17.78360754]
[1760313680340,5.07562683,197.02,196.87,5.07949408]
[1760313680540,20.8,196.99,196.85,5.07975915]
[1760313680736,20.8,196.99,196.88,0.69]
[1760313681163,5.07562683,197.02,196.88,0.69]
[1760313681364,20.8,196.99,196.88,0.69]
[1760313681665,0.12,197.1,196.89,10.87647521]
[1760313681967,5.07330931,197.11,196.91,10.87647521]
[1760313682265,20.8,197.07,196.92,0.69]
[1760313682446,20.8,197.07,196.93,17.77281266]
[1760313682643,20.92,197.06,196.94,0.69]
[1760313683065,20.8,197.06,196.94,0.69]
[1760313683271,0.12,197.05,196.91,5.76822512]
[1760313683452,10.99647521,197.05,196.91,0.69]
[1760313683647,10.87647521,196.97,196.87,0.69]
[1760313683856,20.8,196.94,196.87,0.69]
[1760313684458,20.8,196.9,196.87,0.69]
[1760313685046,20.8,196.9,196.82,5.08056277]
[1760313685246,20.8,196.9,196.81,1e-08]
[1760313685671,20.8,196.88,196.81,1e-08]
[1760313686569,20.8,196.84,196.81,1e-08]
[1760313687344,20.8,196.83,196.81,1e-08]
[1760313688661,5.08078447,196.82,196.81,1e-08]
[1760313688864,20.8,196.9,196.81,1e-08]
[1760313689169,20.8,196.82,196.81,1e-08]
[1760313689351,31.67647521,196.82,196.81,1e-08]
[1760313689674,31.79647521,196.82,196.81,1e-08]
[1760313690455,31.67647521,196.78,196.77,1e-08]
[1760313690758,36.75829246,196.78,196.77,1e-08]
[1760313691059,36.87829246,196.78,196.77,1e-08]
[1760313692073,36.75829246,196.78,196.77,1e-08]
[1760313694065,36.87829246,196.78,196.77,1e-08]
[1760313696272,36.75829246,196.78,196.77,1e-08]
[1760313696474,15.95829246,196.78,196.77,1e-08]
[1760313696680,5.08181725,196.78,196.77,1e-08]
[1760313697357,16.07829246,196.78,196.77,1e-08]
[1760313699168,36.87829246,196.78,196.77,1e-08]
[1760313699359,15.95829246,196.78,196.77,1e-08]
[1760313700258,36.75829246,196.78,196.77,1e-08]
[1760313700453,15.95829246,196.78,196.77,1e-08]
[1760313700655,16.07829246,196.78,196.77,1e-08]
[1760313700855,21.15229246,196.78,196.77,1e-08]
[1760313701254,41.95229246,196.78,196.77,1e-08]
[1760313701455,21.15229246,196.78,196.77,1e-08]
[1760313701856,21.15229246,196.78,196.7,0.1]
[1760313701857,31.67647521,196.71,196.7,1e-08]
[1760313702570,36.76010085,196.71,196.7,1e-08]
[1760313703576,31.67647521,196.71,196.7,0.72000001]
[1760313703776,10.87647521,196.71,196.7,1e-08]
[1760313704676,25.88285046,196.74,196.7,0.69000001]
[1760313704885,25.88285046,196.74,196.71,0.69]
[1760313705071,5.08235216,196.76,196.72,0.69]
[1760313705273,5.08235216,196.76,196.73,0.69]
[1760313705584,20.8,196.73,196.7,1e-08]
[1760313705976,10.87647521,196.72,196.7,1e-08]
[1760313706177,10.87647521,196.72,196.7,0.69000001]
[1760313706377,20.8,196.73,196.71,0.69]
[1760313706894,15.95984243,196.72,196.7,1e-08]
[1760313709489,54.08509659,196.72,196.66,0.2]
[1760313709685,20.8,196.68,196.66,0.2]
[1760313709864,10.87647521,196.67,196.66,0.2]
[1760313710070,31.67647521,196.68,196.66,0.2]
[1760313710795,5.08465958,196.67,196.66,0.2]
[1760313710975,20.8,196.59,196.5,0.1]
[1760313711181,20.8,196.55,196.5,0.1]
[1760313711488,20.8,196.59,196.5,0.1]
[1760313711672,20.8,196.59,196.51,0.69]
[1760313712072,20.8,196.61,196.51,0.69]
[1760313712797,25.88638089,196.61,196.52,5.0885406]
[1760313712970,25.88638089,196.61,196.53,0.69]
[1760313714086,25.88638089,196.61,196.54,5.08802279]
[1760313714396,25.88638089,196.61,196.55,0.69]
[1760313715175,20.8,196.61,196.55,5.77775959]
[1760313715484,20.8,196.64,196.56,0.71]
[1760313715687,10.87647521,196.68,196.56,0.71]
[1760313715886,10.87647521,196.7,196.56,0.71]
[1760313716067,20.8,196.67,196.56,0.71]
[1760313716686,10.87647521,196.66,196.56,0.71]
[1760313716891,0.12,196.75,196.57,5.08724627]
[1760313717086,17.90816831,196.76,196.58,0.71]
[1760313717267,20.8,196.72,196.58,0.71]
[1760313717470,20.8,196.73,196.58,0.71]
[1760313717689,10.87647521,196.72,196.58,0.71]
[1760313718396,0.12,196.71,196.58,0.71]
[1760313718702,0.12,196.7,196.58,0.71]
[1760313718992,31.67647521,196.67,196.58,0.71]
[1760313720292,0.12,196.66,196.55,0.71]
[1760313720895,20.8,196.61,196.55,0.71]
[1760313721195,20.8,196.61,196.55,5.79763136]
[1760313721378,20.8,196.65,196.56,0.71]
[1760313721576,12.71119569,196.68,196.56,0.71]
[1760313721877,15.9605868,196.7,196.56,0.71]
[1760313722300,20.8,196.67,196.57,10.87647521]
[1760313722470,25.40821374,196.79,196.59,10.87647521]
[1760313722674,0.12,196.77,196.6,0.71]
[1760313722872,7.74082512,196.74,196.62,17.80083408]
[1760313723171,20.8,196.71,196.63,0.71]
[1760313723380,7.74082512,196.74,196.63,0.71]
[1760313723601,2.65776706,196.74,196.63,0.71]
[1760313723776,20.8,196.71,196.63,0.71]
[1760313724674,20.8,196.67,196.63,0.71]
[1760313724870,33.51174446,196.67,196.58,0.71]
[1760313725074,20.8,196.64,196.58,0.71]
[1760313725284,31.67647521,196.63,196.55,0.71]
[1760313725487,20.8,196.63,196.55,0.71]
[1760313727000,20.8,196.63,196.56,5.08750508]
[1760313727203,20.8,196.63,196.57,0.71]
[1760313727406,25.88574919,196.63,196.57,0.71]
[1760313727699,25.88574919,196.63,196.55,5.08776315]
[1760313728596,25.88574919,196.63,196.54,5.08802279]
[1760313728918,25.88574919,196.63,196.56,0.71]
[1760313729116,25.88574919,196.63,196.54,17.80807977]
[1760313729282,25.88574919,196.63,196.54,5.08802279]
[1760313729782,20.8,196.59,196.53,0.71]
[1760313730399,20.8,196.59,196.53,5.79824241]
[1760313730581,25.88673819,196.59,196.53,5.79824241]
[1760313731009,20.8,196.57,196.53,5.79824241]
[1760313731278,20.8,196.57,196.54,0.71]
[1760313731704,20.8,196.56,196.54,0.71]
[1760313732677,20.8,196.56,196.54,0.21]
[1760313733202,20.8,196.56,196.51,5.08879955]
[1760313733800,0.62,196.66,196.51,43.25479619]
[1760313733989,25.41725275,196.72,196.52,10.87647521]
[1760313734189,10.87647521,196.7,196.52,10.87647521]
[1760313734403,0.62,196.71,196.52,10.87647521]
[1760313734597,20.8,196.7,196.52,10.87647521]
[1760313734917,0.62,196.71,196.54,10.87647521]
[1760313735121,3.27776706,196.74,196.56,10.87647521]
[1760313735418,20.8,196.68,196.57,0.71]
[1760313735582,0.62,196.68,196.57,0.71]
[1760313735783,10.87647521,196.71,196.57,0.71]
[1760313735983,0.62,196.72,196.57,0.71]
[1760313736184,20.8,196.68,196.57,0.71]
[1760313736394,0.62,196.72,196.58,10.87647521]
[1760313736594,20.8,196.7,196.59,0.71]
[1760313736994,5.08414255,196.69,196.6,5.08646998]
[1760313737183,20.8,196.66,196.61,0.71]
[1760313737681,20.8,196.66,196.6,5.08646998]
[1760313737889,20.8,196.67,196.6,5.08646998]
[1760313738085,0.62,196.66,196.56,13.4283684]
[1760313738389,0.62,196.66,196.57,5.08724627]
[1760313738604,32.29647521,196.65,196.55,5.08761628]
[1760313738802,0.62,196.64,196.55,5.08761628]
[1760313738987,20.8,196.6,196.54,5.08802279]
[1760313740686,20.8,196.6,196.53,5.79826446]
[1760313740995,20.8,196.63,196.54,0.71]
[1760313741506,20.8,196.61,196.54,0.71]
[1760313741912,11.49647521,196.6,196.5,0.1]
[1760313743113,20.8,196.55,196.5,0.1]
[1760313743699,20.8,196.57,196.51,0.71]
[1760313744317,0.62,196.62,196.51,0.71]
[1760313744614,17.79721346,196.66,196.51,0.71]
[1760313744615,0.62,196.64,196.51,0.71]
[1760313745018,10.87647521,196.65,196.51,0.71]
[1760313745317,0.62,196.67,196.53,10.87647521]
[1760313745487,0.62,196.7,196.55,10.87647521]
[1760313745682,0.62,196.73,196.57,10.87647521]
[1760313745887,0.62,196.76,196.59,10.87647521]
[1760313746109,0.62,196.76,196.6,0.72]
[1760313746316,0.62,196.79,196.62,20.8]
[1760313746493,0.62,196.82,196.65,10.87647521]
[1760313746812,5.074,196.85,196.69,10.87647521]
[1760313747007,5.074,196.85,196.7,0.72]
[1760313747208,20.8,196.8,196.71,5.08362564]
[1760313747710,20.8,196.8,196.69,17.79429778]
[1760313747895,20.8,196.8,196.71,0.72]
[1760313748095,0.62,196.82,196.71,0.72]
[1760313748610,20.8,196.8,196.71,0.72]
[1760313748829,0.62,196.82,196.71,0.72]
[1760313749190,20.8,196.8,196.71,5.80359423]
[1760313749391,20.8,196.8,196.69,5.08408753]
[1760313749617,20.8,196.76,196.69,5.08408753]
[1760313750212,21.42,196.76,196.64,0.72]
[1760313750706,20.8,196.72,196.64,5.80543531]
[1760313751406,5.08248539,196.76,196.65,0.72]
[1760313751611,20.8,196.73,196.65,0.72]
[1760313753595,10.87647521,196.8,196.66,28.67368867]
[1760313753800,20.8,196.77,196.67,0.72]
[1760313754713,0.62,196.76,196.66,17.79721346]
[1760313754912,0.62,196.75,196.66,5.08491813]
[1760313755092,0.62,196.74,196.64,5.08521981]
[1760313755292,0.62,196.73,196.63,5.08552721]
[1760313755493,25.88336722,196.72,196.63,5.08552721]
[1760313755712,20.8,196.72,196.64,0.72]
[1760313757208,20.8,196.69,196.61,5.0859969]
[1760313757397,21.42,196.69,196.61,5.0859969]
[1760313757593,25.88426382,196.69,196.6,5.08646998]
[1760313757799,0.62,196.68,196.58,5.08675681]
[1760313757993,25.88426382,196.69,196.59,0.72]
[1760313758220,26.50426382,196.69,196.59,0.72]
[1760313758718,26.50426382,196.69,196.58,17.80422552]
[1760313758912,0.62,196.68,196.58,17.80422552]
[1760313759108,38.59462021,196.69,196.58,5.08675681]
[1760313759325,20.8,196.66,196.58,5.08675681]
[1760313759814,25.88508071,196.66,196.57,5.08724627]
[1760313760819,26.50470035,196.67,196.58,0.72]
[1760313761419,20.8,196.68,196.58,0.72]
[1760313761914,5.70362564,196.71,196.59,28.68002574]
[1760313761915,0.62,196.71,196.59,28.68002574]
[1760313762122,20.8,196.7,196.6,0.72]
[1760313762319,23.58271522,196.76,196.61,10.87647521]
[1760313762320,5.70282499,196.75,196.61,10.87647521]
[1760313762623,20.8,196.72,196.62,0.72]
[1760313762917,21.42,196.71,196.59,18.52355053]
[1760313763102,0.62,196.7,196.59,18.52355053]
[1760313763302,0.62,196.69,196.59,5.08672872]
[1760313763530,0.62,196.68,196.59,5.08672872]
[1760313763901,20.8,196.64,196.57,17.80536195]
[1760313765805,20.8,196.67,196.58,0.72]
[1760313766006,20.8,196.65,196.58,0.72]
[1760313766900,20.8,196.65,196.56,5.08750508]
[1760313767225,0.62,196.64,196.56,5.08750508]
[1760313767611,20.8,196.65,196.57,0.7]
[1760313767811,5.08521909,196.65,196.58,5.08698748]
[1760313768604,21.42,196.67,196.58,17.80445619]
[1760313768808,20.8,196.67,196.59,0.7]
[1760313769116,20.8,196.65,196.59,0.7]
[1760313769519,20.8,196.65,196.58,17.80445619]
[1760313769717,21.42,196.67,196.61,5.08621128]
[1760313770030,5.08352485,196.72,196.62,0.7]
[1760313770333,20.8,196.69,196.62,0.7]
[1760313770520,20.8,196.69,196.61,17.80173948]
[1760313770832,0.62,196.68,196.61,5.08621128]
[1760313771206,0.62,196.75,196.62,0.7]
[1760313771635,0.62,196.75,196.63,10.87647521]
[1760313771850,0.62,196.75,196.64,18.49902359]
[1760313772129,0.62,196.75,196.65,0.7]
[1760313772434,10.87647521,196.8,196.66,10.87647521]
[1760313772635,5.0813097,196.8,196.67,0.7]
[1760313772830,20.8,196.77,196.67,0.7]
[1760313773141,0.62,196.82,196.68,10.87647521]
[1760313773315,0.62,196.82,196.7,10.87647521]
[1760313773810,21.42,196.83,196.72,10.87647521]
[1760313774009,21.42,196.83,196.69,5.08414255]
[1760313774010,0.62,196.82,196.69,5.08414255]
[1760313774323,21.42,196.81,196.7,0.7]
[1760313775415,20.8,196.77,196.67,5.08465958]
[1760313775731,0.62,196.76,196.67,5.08465958]
[1760313776125,5.08259212,196.75,196.65,17.79780904]
[1760313776732,0.62,196.76,196.66,0.67]
[1760313777626,20.8,196.75,196.66,0.67]
[1760313777828,20.8,196.71,196.67,5.08465958]
[1760313778027,20.8,196.71,196.67,5.75465958]
[1760313778330,25.88261265,196.75,196.68,0.67]
[1760313778546,20.8,196.71,196.62,5.08595259]
[1760313778836,0.62,196.7,196.62,5.08595259]
[1760313779137,20.8,196.67,196.56,0.67]
[1760313779332,0.62,196.66,196.56,0.67]
[1760313779514,20.8,196.62,196.52,12.72135151]
[1760313779713,0.62,196.61,196.52,13.39135151]
[1760313779912,20.8,196.57,196.5,5.85886139]
[1760313780320,21.42,196.57,196.5,0.1]
[1760313780716,21.42,196.57,196.5,5.1888597]
[1760313781739,32.29647521,196.56,196.5,0.1]
[1760313782040,20.8,196.52,196.5,0.1]
[1760313782538,0.62,196.51,196.5,0.1]
[1760313783622,11.49647521,196.56,196.5,0.1]
[1760313783822,20.8,196.53,196.5,0.1]
[1760313785116,20.8,196.51,196.5,0.1]
[1760313785838,58.14059245,196.71,196.51,5.08879955]
[1760313786136,10.87647521,196.66,196.52,0.67]
[1760313786344,0.62,196.65,196.52,0.67]
[1760313786549,0.62,196.65,196.53,10.87647521]
[1760313786877,0.62,196.65,196.51,17.81079843]
[1760313786878,20.8,196.6,196.51,18.48079843]